fUSD/lending_fUSD_20240517
["ID","MTS","AMOUNT","RATE_DAILY","PERIOD"]
[327236884,1715908242329,-571.53,0.00012999,2]
[327236885,1715908242338,-571.53,0.00012999,2]
[327236886,1715908242347,-571.53,0.00012999,2]
[327236887,1715908242356,-571.53,0.00012999,2]
[327236888,1715908242365,-571.53,0.00012999,2]
[327236889,1715908242374,-571.53,0.00012999,2]
[327236890,1715908242383,-571.53,0.00012999,2]
[327236891,1715908242392,-571.53,0.00012999,2]
[327236892,1715908242402,-571.53,0.00012999,2]
[327236893,1715908242416,-571.53,0.00012999,2]
[327236894,1715908242425,-571.53,0.00012999,2]
[327236895,1715908242434,-571.53,0.00012999,2]
[327236896,1715908242444,-571.53,0.00012999,2]
[327236897,1715908242453,-571.53,0.00012999,2]
[327236898,1715908242463,-571.68902533,0.00012999,2]
[327236899,1715908242472,-824.51,0.00012999,2]
[327236900,1715908242481,-824.51,0.00012999,2]
[327236901,1715908242493,-824.51,0.00012999,2]
[327236902,1715908242646,-824.51,0.00012999,2]
[327236903,1715908242657,-824.51,0.00012999,2]
[327236904,1715908242668,-824.51,0.00012999,2]
[327236905,1715908242677,-824.51,0.00012999,2]
[327236906,1715908242688,-824.51,0.00012999,2]
[327236907,1715908242699,-824.51,0.00012999,2]
[327236908,1715908242710,-824.51,0.00012999,2]
[327236909,1715908242720,-824.51,0.00012999,2]
[327236910,1715908242731,-824.51,0.00012999,2]
[327236911,1715908242740,-824.51,0.00012999,2]
[327236912,1715908242749,-824.51,0.00012999,2]
[327236913,1715908242759,-824.51,0.00012999,2]
[327236915,1715908242768,-824.6914731,0.00012999,2]
[327236917,1715908242777,-2000.0,0.00012999,2]
[327236919,1715908242787,-200.0,0.00012999,2]
[327236921,1715908242797,-8292.15604012,0.00012999,2]
[327236923,1715908242807,-500.0,0.00012999,2]
[327236925,1715908242816,-500.0,0.00012999,2]
[327236927,1715908242826,-500.0,0.00012999,2]
[327236929,1715908242835,-500.0,0.00012999,2]
[327236930,1715908242845,-500.0,0.00012999,2]
[327236931,1715908242854,-500.0,0.00012999,2]
[327236932,1715908242864,-500.0,0.00012999,2]
[327236933,1715908242873,-500.0,0.00012999,2]
[327236934,1715908242883,-500.0,0.00012999,2]
[327236935,1715908242892,-500.0,0.00012999,2]
[327236936,1715908242901,-500.0,0.00012999,2]
[327236937,1715908242911,-500.0,0.00012999,2]
[327236938,1715908242920,-500.0,0.00012999,2]
[327236939,1715908242929,-597.68815846,0.00012999,2]
[327236940,1715908242940,-500.0,0.00012999,2]
[327236941,1715908242949,-500.0,0.00012999,2]
[327236942,1715908242958,-500.0,0.00012999,2]
[327236943,1715908242967,-500.0,0.00012999,2]
[327236944,1715908242976,-500.0,0.00012999,2]
[327236945,1715908242986,-500.0,0.00012999,2]
[327236946,1715908242997,-500.0,0.00012999,2]
[327236947,1715908243009,-500.0,0.00012999,2]
[327236948,1715908243019,-500.0,0.00012999,2]
[327236949,1715908243028,-333.88425633,0.00012999,2]
[327236950,1715908243038,-500.0,0.00012999,2]
[327236951,1715908243048,-670.24,0.00012999,2]
[327236952,1715908243059,-670.24,0.00012999,2]
[327236953,1715908243069,-670.24,0.00012999,2]
[327236954,1715908243079,-670.24,0.00012999,2]
[327236955,1715908243088,-670.24,0.00012999,2]
[327236956,1715908243100,-670.24,0.00012999,2]
[327236957,1715908243109,-670.24,0.00012999,2]
[327236958,1715908243119,-500.0,0.00012999,2]
[327236959,1715908243128,-670.24,0.00012999,2]
[327236960,1715908243138,-500.0,0.00012999,2]
[327236961,1715908243149,-670.24,0.00012999,2]
[327236962,1715908243159,-670.24,0.00012999,2]
[327236963,1715908243169,-670.24,0.00012999,2]
[327236964,1715908243178,-670.24,0.00012999,2]
[327236965,1715908243187,-670.24,0.00012999,2]
[327236966,1715908243196,-670.24,0.00012999,2]
[327236967,1715908243206,-670.24,0.00012999,2]
[327236968,1715908243216,-670.26,0.00012999,2]
[327236969,1715908243225,-1086.26,0.00012999,2]
[327236970,1715908243235,-1086.26,0.00012999,2]
[327236971,1715908243244,-1086.26,0.00012999,2]
[327236972,1715908243253,-1086.26,0.00012999,2]
[327236973,1715908243263,-1086.26,0.00012999,2]
[327236974,1715908243272,-1086.26,0.00012999,2]
[327236975,1715908243281,-1086.26,0.00012999,2]
[327236976,1715908243291,-1086.26,0.00012999,2]
[327236977,1715908243301,-1086.26,0.00012999,2]
[327236978,1715908243311,-1086.26,0.00012999,2]
[327236979,1715908243321,-1086.26,0.00012999,2]
[327236980,1715908243330,-1086.26,0.00012999,2]
[327236981,1715908243340,-1086.26,0.00012999,2]
[327236982,1715908243349,-1086.26,0.00012999,2]
[327236983,1715908243359,-1086.26,0.00012999,2]
[327236984,1715908243369,-1086.26,0.00012999,2]
[327236985,1715908243378,-1086.47561906,0.00012999,2]
[327236986,1715908243388,-500.0,0.00012999,2]
[327236987,1715908243397,-500.0,0.00012999,2]
[327236988,1715908243408,-500.0,0.00012999,2]
[327236989,1715908243419,-1843.07,0.00012999,2]
[327236990,1715908243429,-500.0,0.00012999,2]
[327236991,1715908243438,-1843.07,0.00012999,2]
[327236992,1715908243447,-500.0,0.00012999,2]
[327236993,1715908243456,-1843.07,0.00012999,2]
[327236994,1715908243465,-500.0,0.00012999,2]
[327236995,1715908243475,-1843.07,0.00012999,2]
[327236996,1715908243484,-500.0,0.00012999,2]
[327236997,1715908243494,-1843.07,0.00012999,2]
[327236998,1715908243504,-500.0,0.00012999,2]
[327236999,1715908243513,-500.0,0.00012999,2]
[327237000,1715908243522,-1843.07,0.00012999,2]
[327237001,1715908243531,-500.0,0.00012999,2]
[327237002,1715908243541,-1843.07,0.00012999,2]
[327237003,1715908243550,-500.0,0.00012999,2]
[327237004,1715908243559,-1843.07,0.00012999,2]
[327237005,1715908243569,-327.3694424,0.00012999,2]
[327237006,1715908243579,-1843.07,0.00012999,2]
[327237007,1715908243588,-1843.07,0.00012999,2]
[327237008,1715908243597,-1843.07,0.00012999,2]
[327237009,1715908243607,-1843.07,0.00012999,2]
[327237010,1715908243616,-1843.07,0.00012999,2]
[327237011,1715908243626,-1843.07,0.00012999,2]
[327237012,1715908243635,-1843.07,0.00012999,2]
[327237013,1715908243645,-1843.07,0.00012999,2]
[327237014,1715908243655,-1843.07849968,0.00012999,2]
[327237015,1715908243665,-1181.05,0.00012999,2]
[327237016,1715908243674,-1181.05,0.00012999,2]
[327237017,1715908243683,-1181.05,0.00012999,2]
[327237018,1715908243693,-1181.05,0.00012999,2]
[327237019,1715908243703,-1181.05,0.00012999,2]
[327237020,1715908243712,-1181.05,0.00012999,2]
[327237021,1715908243721,-1181.05,0.00012999,2]
[327237022,1715908243731,-1181.05,0.00012999,2]
[327237023,1715908243740,-1181.05,0.00012999,2]
[327237024,1715908243749,-1181.05,0.00012999,2]
[327237025,1715908243758,-1181.05,0.00012999,2]
[327237026,1715908243769,-1181.05,0.00012999,2]
[327237027,1715908243777,-1181.05,0.00012999,2]
[327237028,1715908243787,-1181.05,0.00012999,2]
[327237029,1715908243796,-1181.05,0.00012999,2]
[327237030,1715908243805,-1181.05,0.00012999,2]
[327237031,1715908243815,-1181.06239622,0.00012999,2]
[327237032,1715908243824,-500.0,0.00012999,2]
[327237033,1715908243834,-500.0,0.00012999,2]
[327237034,1715908243843,-500.0,0.00012999,2]
[327237035,1715908243852,-500.0,0.00012999,2]
[327237036,1715908243863,-353.8969244,0.00012999,2]
[327237037,1715908243875,-500.0,0.00012999,2]
[327237038,1715908243884,-500.0,0.00012999,2]
[327237039,1715908243894,-167.53275968,0.00012999,2]
[327237040,1715908243904,-5866.64336106,0.00012999,2]
[327237041,1715908243914,-743.81,0.00012999,2]
[327237042,1715908243923,-743.81,0.00012999,2]
[327237043,1715908243932,-743.81,0.00012999,2]
[327237044,1715908243942,-743.81,0.00012999,2]
[327237045,1715908243952,-743.81,0.00012999,2]
[327237046,1715908243963,-743.81,0.00012999,2]
[327237047,1715908243974,-743.81,0.00012999,2]
[327237048,1715908243983,-743.81,0.00012999,2]
[327237049,1715908243993,-743.81,0.00012999,2]
[327237050,1715908244003,-743.81,0.00012999,2]
[327237051,1715908244013,-743.81,0.00012999,2]
[327237052,1715908244022,-743.81,0.00012999,2]
[327237053,1715908244031,-500.0,0.00012999,2]
[327237054,1715908244041,-743.81,0.00012999,2]
[327237055,1715908244051,-350.13014317,0.00012999,2]
[327237056,1715908244063,-743.81,0.00012999,2]
[327237057,1715908244074,-743.81,0.00012999,2]
[327237058,1715908244085,-743.81,0.00012999,2]
[327237059,1715908244095,-743.8961534,0.00012999,2]
[327237060,1715908244104,-667.49,0.00012999,2]
[327237061,1715908244114,-667.49,0.00012999,2]
[327237062,1715908244125,-667.49,0.00012999,2]
[327237063,1715908244135,-667.49,0.00012999,2]
[327237064,1715908244144,-667.49,0.00012999,2]
[327237065,1715908244154,-667.49,0.00012999,2]
[327237066,1715908244164,-667.49,0.00012999,2]
[327237067,1715908244174,-207.95211974,0.00012999,2]
[327237068,1715908244184,-667.49,0.00012999,2]
[327237069,1715908244195,-667.49,0.00012999,2]
[327237070,1715908244206,-667.49,0.00012999,2]
[327237071,1715908244215,-667.49,0.00012999,2]
[327237072,1715908244226,-667.49,0.00012999,2]
[327237073,1715908244236,-667.49,0.00012999,2]
[327237074,1715908244246,-667.49,0.00012999,2]
[327237075,1715908244256,-667.49,0.00012999,2]
[327237076,1715908244268,-667.49,0.00012999,2]
[327237077,1715908244278,-667.60185033,0.00012999,2]
[327237078,1715908244287,-500.0,0.00012999,2]
[327237079,1715908244297,-555.98,0.00012999,2]
[327237080,1715908244307,-500.0,0.00012999,2]
[327237081,1715908244317,-555.98,0.00012999,2]
[327237082,1715908244327,-500.0,0.00012999,2]
[327237083,1715908244337,-555.98,0.00012999,2]
[327237084,1715908244346,-500.0,0.00012999,2]
[327237085,1715908244356,-555.98,0.00012999,2]
[327237086,1715908244365,-500.0,0.00012999,2]
[327237087,1715908244374,-500.0,0.00012999,2]
[327237088,1715908244384,-555.98,0.00012999,2]
[327237089,1715908244395,-1202.76,0.00012999,2]
[327237090,1715908244404,-555.98,0.00012999,2]
[327237091,1715908244420,-152.44,0.00012999,2]
[327237092,1715908244432,-1202.76,0.00012999,2]
[327237093,1715908244441,-555.98,0.00012999,2]
[327237094,1715908244451,-5039.67,0.00012999,2]
[327237095,1715908244461,-1202.76,0.00012999,2]
[327237096,1715908244471,-555.98,0.00012999,2]
[327237097,1715908244480,-1202.76,0.00012999,2]
[327237098,1715908244492,-555.98,0.00012999,2]
[327237099,1715908244501,-5039.67,0.00012999,2]
[327237100,1715908244510,-1202.76,0.00012999,2]
[327237101,1715908244520,-555.98,0.00012999,2]
[327237102,1715908244529,-5039.67,0.00012999,2]
[327237103,1715908244539,-1202.76,0.00012999,2]
[327237104,1715908244548,-555.98,0.00012999,2]
[327237105,1715908244558,-5039.67,0.00012999,2]
[327237106,1715908244567,-1202.76,0.00012999,2]
[327237107,1715908244577,-555.98,0.00012999,2]
[327237108,1715908244587,-555.98,0.00012999,2]
[327237109,1715908244596,-1202.76,0.00012999,2]
[327237110,1715908244606,-1202.76,0.00012999,2]
[327237111,1715908244615,-555.98,0.00012999,2]
[327237112,1715908244624,-5039.67,0.00012999,2]
[327237113,1715908244634,-555.98,0.00012999,2]
[327237114,1715908244643,-5039.67,0.00012999,2]
[327237115,1715908244653,-1202.76,0.00012999,2]
[327237116,1715908244663,-5039.67,0.00012999,2]
[327237117,1715908244672,-5039.67,0.00012999,2]
[327237118,1715908244682,-1202.76,0.00012999,2]
[327237119,1715908244691,-555.98,0.00012999,2]
[327237120,1715908244700,-5039.67,0.00012999,2]
[327237121,1715908244710,-1202.76,0.00012999,2]
[327237122,1715908244719,-556.14142012,0.00012999,2]
[327237123,1715908244728,-1202.76,0.00012999,2]
[327237124,1715908244737,-5039.67,0.00012999,2]
[327237125,1715908244746,-1202.76,0.00012999,2]
[327237126,1715908244755,-5039.67,0.00012999,2]
[327237127,1715908244766,-5039.67,0.00012999,2]
[327237128,1715908244775,-1202.76,0.00012999,2]
[327237129,1715908244784,-1202.79356394,0.00012999,2]
[327237130,1715908244794,-5039.67,0.00012999,2]
[327237131,1715908244803,-5039.67,0.00012999,2]
[327237132,1715908244812,-5039.67,0.00012999,2]
[327237133,1715908244822,-5039.67,0.00012999,2]
[327237134,1715908244831,-5039.84,0.00012999,2]
[327237135,1715908244840,-195.28,0.00012999,2]
[327237136,1715908244850,-10278.1,0.00012999,2]
[327237137,1715908244859,-4300.28,0.00012999,2]
[327237138,1715908244870,-4300.28,0.00012999,2]
[327237139,1715908244879,-4300.28,0.00012999,2]
[327237140,1715908244888,-4300.28,0.00012999,2]
[327237141,1715908244899,-4300.28,0.00012999,2]
[327237142,1715908244908,-4300.28,0.00012999,2]
[327237143,1715908244918,-4300.28,0.00012999,2]
[327237144,1715908244927,-4300.28,0.00012999,2]
[327237145,1715908244937,-4300.28,0.00012999,2]
[327237146,1715908244946,-4300.28,0.00012999,2]
[327237147,1715908244956,-4300.28,0.00012999,2]
[327237148,1715908244966,-4300.28,0.00012999,2]
[327237149,1715908244975,-4300.28,0.00012999,2]
[327237150,1715908244985,-4300.28,0.00012999,2]
[327237151,1715908244994,-4300.28,0.00012999,2]
[327237152,1715908245004,-4300.28,0.00012999,2]
[327237153,1715908245014,-4300.29788239,0.00012999,2]
[327237154,1715908245024,-2000.0,0.00012999,2]
[327237155,1715908245033,-200.0,0.00012999,2]
[327237156,1715908245043,-547346.96572633,0.00013,2]
[327237157,1715908245092,-495773.29932314,0.00013,2]
[327237158,1715908245109,-8957.90797154,0.00013,2]
[327237159,1715908245122,-3925.699,0.00013,2]
[327237160,1715908245189,-194.95587088,0.00012898,2]
[327237161,1715908245199,-5457.56074978,0.00013,2]
[327237162,1715908245211,-792.16022245,0.00013,2]
[327237163,1715908245223,-2069.75078858,0.00013,2]
[327237164,1715908245235,-328.04999985,0.00013,2]
[327237165,1715908245246,-526.83208673,0.00013,2]
[327237166,1715908245266,-155.0,0.00012996,2]
[327237167,1715908245275,-1858.71898505,0.00013,2]
[327237168,1715908245286,-715.44016418,0.00013,2]
[327237174,1715908245909,-307.41289773,0.00013,2]
[327237175,1715908253994,44.61285421,8.28e-05,2]
[327237176,1715908254018,110.57598134,8.28e-05,2]
[327237177,1715908342151,2546.90772083,6.21e-05,2]
[327237178,1715908358649,3546.88649287,8.28e-05,2]
[327237179,1715908362094,1740.95127961,6.21e-05,2]
[327237180,1715908803042,150.0,6.21e-05,2]
[327237181,1715908803108,150.0,6.21e-05,2]
[327237182,1715908803288,150.0,6.21e-05,2]
[327237183,1715908803479,150.0,6.21e-05,2]
[327237184,1715908803658,150.0,6.21e-05,2]
[327237185,1715908803893,150.0,6.21e-05,2]
[327237186,1715908804741,150.0,6.21e-05,2]
[327237187,1715908804784,150.56597844,6.21e-05,2]
[327237209,1715908956718,191.69,8.566e-05,2]
[327237210,1715909192362,2142.81,8.591e-05,2]
[327237233,1715909432336,-155.0,8.803e-05,2]
[327237234,1715909432345,-405.80972008,8.804e-05,2]
[327237235,1715909432357,-266.51338712,0.0001,2]
[327237236,1715909432367,-324.73962401,0.00010012,2]
[327237237,1715909432380,-840.0,0.00010013,2]
[327237238,1715909432390,-2263.99656285,0.00010445,2]
[327237239,1715909432400,-2263.99656286,0.00010445,2]
[327237240,1715909432409,-128.69372107,0.00010458,2]
[327237241,1715909432509,-66.77627893,0.00010458,2]
[327237242,1715909432518,-386.73372107,0.00010545,2]
[327237243,1715909432530,-608.79,0.00010545,2]
[327237244,1715909432543,-361.15,0.00010545,2]
[327237245,1715909432556,-277.94262863,0.00010545,2]
[327237246,1715909432674,-2848.9451731,0.00010545,2]
[327237417,1715909438352,-16646.8384772,0.00010545,2]
[327237419,1715909438362,-1415.61,0.00010571,2]
[327237421,1715909438372,-250.0,0.0001059,2]
[327237423,1715909438382,-841.21,0.0001061,2]
[327237425,1715909438392,-250.0,0.00010619,2]
[327237427,1715909438402,-2009.2,0.0001063,15]
[327237429,1715909438412,-158.51,0.00010702,2]
[327237432,1715909438422,-153.86,0.00010712,2]
[327237434,1715909438432,-2142.81,0.00010855,2]
[327237436,1715909438441,-153.86,0.00010898,2]
[327237438,1715909438450,-182.85,0.00010959,2]
[327237440,1715909438460,-3005.0,0.00010959,2]
[327237442,1715909438470,-200.0,0.00011,2]
[327237444,1715909438479,-153.86,0.00011084,2]
[327237446,1715909438490,-553.711902,0.00011233,2]
[327237448,1715909438500,-840.0,0.00011265,2]
[327237450,1715909438509,-854.07,0.00011265,2]
[327237452,1715909438519,-153.86,0.0001127,2]
[327237454,1715909438528,-553.711902,0.00011374,2]
[327237456,1715909438538,-30082.21745136,0.00011389,2]
[327237457,1715909438548,-10000.0,0.00011399,2]
[327237458,1715909438560,-2500.0,0.00011421,2]
[327237459,1715909438569,-168.45,0.00011432,2]
[327237460,1715909438580,-553.711902,0.00011514,2]
[327237461,1715909438590,-1354.5629,0.00011595,2]
[327237462,1715909438599,-7143.428,0.00011622,2]
[327237463,1715909438610,-553.711902,0.00011654,2]
[327237464,1715909438620,-153.14,0.00011722,2]
[327237465,1715909438629,-553.711902,0.00011795,2]
[327237466,1715909438639,-457.52911222,0.000118,2]
[327237467,1715909438649,-200.0,0.000119,4]
[327237468,1715909438658,-179.95,0.0001191,2]
[327237469,1715909438668,-841.21,0.00011936,2]
[327237470,1715909438678,-500.0,0.00012,2]
[327237471,1715909438687,-500.0,0.00012,2]
[327237472,1715909438697,-500.0,0.00012,2]
[327237473,1715909438706,-500.0,0.00012,2]
[327237474,1715909438716,-500.0,0.00012,2]
[327237475,1715909438726,-500.0,0.00012,2]
[327237476,1715909438735,-500.0,0.00012,2]
[327237477,1715909438745,-500.0,0.00012,2]
[327237478,1715909438755,-500.0,0.00012,2]
[327237479,1715909438764,-500.0,0.00012,2]
[327237480,1715909438773,-500.0,0.00012,2]
[327237481,1715909438783,-500.0,0.00012,2]
[327237482,1715909438793,-500.0,0.00012,2]
[327237483,1715909438802,-500.0,0.00012,2]
[327237484,1715909438811,-500.0,0.00012,2]
[327237485,1715909438821,-500.0,0.00012,2]
[327237486,1715909438831,-500.0,0.00012,2]
[327237487,1715909438840,-500.0,0.00012,2]
[327237488,1715909438855,-500.0,0.00012,2]
[327237489,1715909438864,-500.0,0.00012,2]
[327237490,1715909438873,-500.0,0.00012,2]
[327237491,1715909438882,-500.0,0.00012,2]
[327237492,1715909438893,-500.0,0.00012,2]
[327237493,1715909438902,-500.0,0.00012,2]
[327237494,1715909438912,-500.0,0.00012,2]
[327237495,1715909438924,-500.0,0.00012,2]
[327237496,1715909438933,-500.0,0.00012,2]
[327237497,1715909438943,-500.0,0.00012,2]
[327237499,1715909438952,-500.0,0.00012,2]
[327237502,1715909438962,-500.0,0.00012,2]
[327237504,1715909438971,-500.0,0.00012,2]
[327237506,1715909438982,-500.0,0.00012,2]
[327237507,1715909438991,-500.0,0.00012,2]
[327237508,1715909439000,-500.0,0.00012,2]
[327237509,1715909439010,-500.0,0.00012,2]
[327237510,1715909439020,-500.0,0.00012,2]
[327237511,1715909439030,-500.0,0.00012,2]
[327237512,1715909439039,-500.0,0.00012,2]
[327237513,1715909439049,-500.0,0.00012,2]
[327237514,1715909439059,-500.0,0.00012,2]
[327237515,1715909439069,-319.09,0.00012,2]
[327237516,1715909439079,-435.0,0.00012,2]
[327237517,1715909439089,-500.0,0.00012,2]
[327237518,1715909439098,-500.0,0.00012,2]
[327237519,1715909439107,-2210.31127184,0.00012,2]
[327237520,1715909439120,-2789.68872816,0.00012,2]
[327237521,1715909439130,-250.00245932,0.00012,2]
[327237522,1715909439139,-330.32621815,0.00012,2]
[327237523,1715909439166,-838.75528515,0.00012,2]
[327237524,1715909439177,-260.21525013,0.00012,2]
[327237525,1715909439188,-627.57621706,0.00012,2]
[327237526,1715909439200,-311.75649,0.00012,2]
[327237527,1715909439212,-7180.13233727,0.00012,2]
[327237528,1715909439224,-666.23816241,0.00012,2]
[327237529,1715909439241,-9409.93283513,0.00012,2]
[327237530,1715909439250,-500.0,0.00012,4]
[327237531,1715909439260,-170.15,0.00012033,2]
[327237532,1715909439270,-1000.0,0.00012044,2]
[327237533,1715909439280,-700.0,0.000121,4]
[327237534,1715909439290,-810.0,0.00012144,2]
[327237535,1715909439299,-444.0,0.00012144,2]
[327237536,1715909439310,-612.0,0.00012144,2]
[327237537,1715909439320,-1586.126,0.00012144,2]
[327237538,1715909439330,-2351.0,0.00012144,2]
[327237539,1715909439341,-1126.129,0.00012144,2]
[327237540,1715909439352,-3158.0,0.00012144,2]
[327237541,1715909439362,-215.0,0.00012144,2]
[327237542,1715909439372,-289.0,0.00012144,2]
[327237543,1715909439381,-5753.0,0.00012144,2]
[327237544,1715909439391,-2159.0,0.00012144,2]
[327237545,1715909439401,-1052.182,0.00012144,2]
[327237546,1715909439410,-5914.0,0.00012144,2]
[327237547,1715909439420,-37858.0,0.00012144,2]
[327237548,1715909439430,-1399.0,0.00012144,2]
[327237549,1715909439439,-973.0,0.00012144,2]
[327237550,1715909439449,-180.0,0.00012175,2]
[327237551,1715909439459,-150.0,0.00012192,2]
[327237552,1715909439469,-1000.0,0.000122,4]
[327237553,1715909439479,-1250.0,0.000123,2]
[327237554,1715909439489,-1300.0,0.000123,4]
[327237555,1715909439499,-10933.68758678,0.000124,2]
[327237556,1715909439509,-200.0,0.000124,4]
[327237557,1715909439519,-158.51,0.00012486,2]
[327237558,1715909439528,-252.30363368,0.000125,2]
[327237559,1715909439539,-200.0,0.000125,4]
[327237560,1715909439548,-840.0,0.00012517,2]
[327237561,1715909439558,-200.0,0.000126,4]
[327237562,1715909439568,-200.0,0.000127,4]
[327237563,1715909439578,-500.0,0.00012749,2]
[327237564,1715909439588,-500.0,0.00012749,2]
[327237565,1715909439597,-500.0,0.00012749,2]
[327237566,1715909439607,-500.0,0.00012749,2]
[327237567,1715909439617,-500.0,0.00012749,2]
[327237568,1715909439628,-500.0,0.00012749,2]
[327237569,1715909439638,-500.0,0.00012749,2]
[327237570,1715909439648,-500.0,0.00012749,2]
[327237571,1715909439658,-500.0,0.00012749,2]
[327237572,1715909439667,-500.0,0.00012749,2]
[327237573,1715909439678,-500.0,0.00012749,2]
[327237574,1715909439688,-500.0,0.00012749,2]
[327237575,1715909439697,-500.0,0.00012749,2]
[327237576,1715909439707,-500.0,0.00012749,2]
[327237577,1715909439717,-500.0,0.00012749,2]
[327237578,1715909439728,-500.0,0.00012749,2]
[327237579,1715909439738,-500.0,0.00012749,2]
[327237580,1715909439996,-500.0,0.00012749,2]
[327237581,1715909440008,-500.0,0.00012749,2]
[327237582,1715909440018,-500.0,0.00012749,2]
[327237583,1715909440029,-500.0,0.00012749,2]
[327237584,1715909440039,-500.0,0.00012749,2]
[327237585,1715909440050,-500.0,0.00012749,2]
[327237586,1715909440062,-500.0,0.00012749,2]
[327237587,1715909440072,-500.0,0.00012749,2]
[327237588,1715909440082,-12650.30629629,0.0001275,2]
[327237589,1715909440092,-500.0,0.00012797,2]
[327237590,1715909440103,-500.0,0.00012797,2]
[327237591,1715909440112,-156.89426406,0.00012797,2]
[327237592,1715909440122,-7500.0,0.00012798,2]
[327237593,1715909440132,-700.0,0.000128,4]
[327237594,1715909440142,-1054.0,0.00012804,2]
[327237595,1715909440151,-500.0,0.00012869,2]
[327237596,1715909440161,-500.0,0.00012869,2]
[327237597,1715909440171,-500.0,0.00012869,2]
[327237598,1715909440180,-500.0,0.00012869,2]
[327237599,1715909440189,-500.0,0.00012869,2]
[327237600,1715909440199,-500.0,0.00012869,2]
[327237601,1715909440209,-500.0,0.00012869,2]
[327237602,1715909440218,-500.0,0.00012869,2]
[327237603,1715909440227,-500.0,0.00012869,2]
[327237604,1715909440236,-500.0,0.00012869,2]
[327237605,1715909440246,-500.0,0.00012869,2]
[327237606,1715909440256,-500.0,0.00012869,2]
[327237607,1715909440266,-500.0,0.00012869,2]
[327237608,1715909440276,-3703.92,0.00012869,2]
[327237609,1715909440287,-523.368,0.00012869,2]
[327237610,1715909440297,-500.0,0.00012869,2]
[327237611,1715909440308,-184.70904325,0.00012869,2]
[327237612,1715909440318,-316.13191406,0.00012869,2]
[327237613,1715909440328,-500.0,0.00012869,2]
[327237614,1715909440338,-500.0,0.0001289,2]
[327237615,1715909440348,-500.0,0.0001289,2]
[327237616,1715909440358,-500.0,0.0001289,2]
[327237617,1715909440368,-500.0,0.0001289,2]
[327237618,1715909440378,-500.0,0.0001289,2]
[327237619,1715909440388,-500.0,0.0001289,2]
[327237620,1715909440398,-897.89,0.0001289,2]
[327237621,1715909440408,-10753.87,0.00012893,2]
[327237622,1715909440417,-1106.12,0.00012893,2]
[327237623,1715909440427,-941.37,0.00012893,2]
[327237624,1715909440436,-2259.9,0.00012893,2]
[327237625,1715909440445,-2884.34,0.00012893,2]
[327237626,1715909440455,-200.0,0.00012895,2]
[327237627,1715909440464,-1000.0,0.00012895,2]
[327237628,1715909440473,-500.0,0.00012895,2]
[327237629,1715909440482,-200.0,0.00012896,2]
[327237630,1715909440492,-200.0,0.00012896,2]
[327237631,1715909440501,-1000.0,0.00012896,2]
[327237632,1715909440511,-500.0,0.00012896,2]
[327237633,1715909440520,-500.0,0.00012896,2]
[327237634,1715909440529,-221.26340903,0.00012898,2]